[Event "Early Titled Tuesday Blitz | February 8 2022"]
[White "Berdychevskaya, Natasha"]
[Black "Bilan, Danila"]
[WhiteFideId "4159322"]
[BlackFideId "24161918"]
[WhiteElo "1780"]
[BlackElo "2164"]
[Result "1-0"]
[Round "03"]
[TimeControl "180+1"]
[Date "2022.02.08"]
[WhiteClock "0:00:08"]
[BlackClock "0:00:11"]

1. d4 {[%clk 0:02:54]}  d5 {[%clk 0:02:59]} 2. Bf4 {[%clk 0:02:54]}  Nf6 {[%clk 0:02:59]} 3. e3 {[%clk 0:02:54]}  c5 {[%clk 0:02:59]} 4. c3 {[%clk 0:02:54]}  Nc6 {[%clk 0:03:00]} 5. Nd2 {[%clk 0:02:54]}  Qb6 {[%clk 0:02:56]} 6. Qb3 {[%clk 0:02:54]}  c4 {[%clk 0:02:56]} 7. Qc2 {[%clk 0:02:53]}  g6 {[%clk 0:02:48]} 8. e4 {[%clk 0:02:54]}  Nxe4 {[%clk 0:02:35]} 9. Nxe4 {[%clk 0:02:50]}  dxe4 {[%clk 0:02:15]} 10. Bxc4 {[%clk 0:02:50]}  Bg7 {[%clk 0:02:14]} 11. Ne2 {[%clk 0:02:44]}  O-O {[%clk 0:02:02]} 12. O-O {[%clk 0:02:36]}  e5 {[%clk 0:01:50]} 13. dxe5 {[%clk 0:02:19]}  Bxe5 {[%clk 0:01:49]} 14. Bxe5 {[%clk 0:02:12]}  Nxe5 {[%clk 0:01:49]} 15. Bb3 {[%clk 0:02:03]}  e3 {[%clk 0:01:38]} 16. Nd4 {[%clk 0:01:59]}  Ng4 {[%clk 0:01:27]} 17. f3 {[%clk 0:01:16]}  Nh6 {[%clk 0:01:17]} 18. Rfe1 {[%clk 0:01:08]}  Re8 {[%clk 0:01:15]} 19. Re2 {[%clk 0:01:04]}  Nf5 {[%clk 0:01:13]} 20. Rd1 {[%clk 0:00:47]}  Nxd4 {[%clk 0:01:08]} 21. Rxd4 {[%clk 0:00:47]}  Bf5 {[%clk 0:00:56]} 22. Qc1 {[%clk 0:00:47]}  Be6 {[%clk 0:00:50]} 23. Rxe3 {[%clk 0:00:29]}  Bxb3 {[%clk 0:00:47]} 24. axb3 {[%clk 0:00:28]}  Qxb3 {[%clk 0:00:42]} 25. Rde4 {[%clk 0:00:27]}  Rxe4 {[%clk 0:00:30]} 26. Rxe4 {[%clk 0:00:28]}  Rd8 {[%clk 0:00:30]} 27. Rd4 {[%clk 0:00:28]}  Re8 {[%clk 0:00:25]} 28. Qd2 {[%clk 0:00:21]}  Qb6 {[%clk 0:00:22]} 29. h4 {[%clk 0:00:20]}  h5 {[%clk 0:00:21]} 30. Kh1 {[%clk 0:00:19]}  Qf6 {[%clk 0:00:21]} 31. Qf4 {[%clk 0:00:14]}  Qxf4 {[%clk 0:00:20]} 32. Rxf4 {[%clk 0:00:15]}  Re2 {[%clk 0:00:20]} 33. Rb4 {[%clk 0:00:14]}  b6 {[%clk 0:00:21]} 34. Kh2 {[%clk 0:00:14]}  Kg7 {[%clk 0:00:20]} 35. Kg3 {[%clk 0:00:15]}  Kf6 {[%clk 0:00:21]} 36. Ra4 {[%clk 0:00:13]}  a5 {[%clk 0:00:20]} 37. b4 {[%clk 0:00:12]}  Re5 {[%clk 0:00:14]} 38. bxa5 {[%clk 0:00:11]}  bxa5 {[%clk 0:00:15]} 39. Rc4 {[%clk 0:00:11]}  Re6 {[%clk 0:00:11]} 40. Ra4 {[%clk 0:00:08]}  Rc6 {[%clk 0:00:08]} 41. Rxa5 {[%clk 0:00:06]}  Rxc3 {[%clk 0:00:09]} 42. Ra6+ {[%clk 0:00:06]}  Kg7 {[%clk 0:00:09]} 43. Ra5 {[%clk 0:00:06]}  Rc4 {[%clk 0:00:10]} 44. Ra6 {[%clk 0:00:06]}  Rd4 {[%clk 0:00:10]} 45. Ra5 {[%clk 0:00:06]}  Rd6 {[%clk 0:00:10]} 46. Ra4 {[%clk 0:00:06]}  Re6 {[%clk 0:00:11]} 47. Rb4 {[%clk 0:00:07]}  Kf6 {[%clk 0:00:12]} 48. Rc4 {[%clk 0:00:06]}  Re5 {[%clk 0:00:12]} 49. Rc6+ {[%clk 0:00:06]}  Kf5 {[%clk 0:00:12]} 50. Rc7 {[%clk 0:00:06]}  f6 {[%clk 0:00:13]} 51. Rc4 {[%clk 0:00:06]}  g5 {[%clk 0:00:13]} 52. hxg5 {[%clk 0:00:05]}  fxg5 {[%clk 0:00:14]} 53. Rb4 {[%clk 0:00:05]}  Rc5 {[%clk 0:00:14]} 54. Ra4 {[%clk 0:00:05]}  h4+ {[%clk 0:00:13]} 55. Kh3 {[%clk 0:00:05]}  Rc1 {[%clk 0:00:12]} 56. Ra5+ {[%clk 0:00:05]}  Kg6 {[%clk 0:00:12]} 57. Kg4 {[%clk 0:00:04]}  Rc4+ {[%clk 0:00:11]} 58. Kh3 {[%clk 0:00:04]}  Kh5 {[%clk 0:00:11]} 59. Rb5 {[%clk 0:00:04]}  Rc1 {[%clk 0:00:11]} 60. Kh2 {[%clk 0:00:03]}  Rc2 {[%clk 0:00:10]} 61. f4 {[%clk 0:00:03]}  Rf2 {[%clk 0:00:06]} 62. Rxg5+ {[%clk 0:00:04]}  Kh6 {[%clk 0:00:06]} 63. Rg4 {[%clk 0:00:04]}  Kh5 {[%clk 0:00:07]} 64. Kh3 {[%clk 0:00:04]}  Rf1 {[%clk 0:00:05]} 65. Rxh4+ {[%clk 0:00:05]}  Kg6 {[%clk 0:00:06]} 66. g3 {[%clk 0:00:05]}  Kf5 {[%clk 0:00:07]} 67. Rh5+ {[%clk 0:00:05]}  Kg6 {[%clk 0:00:07]} 68. Kg4 {[%clk 0:00:05]}  Rg1 {[%clk 0:00:07]} 69. Rg5+ {[%clk 0:00:06]}  Kf6 {[%clk 0:00:07]} 70. Ra5 {[%clk 0:00:06]}  Rb1 {[%clk 0:00:07]} 71. Ra6+ {[%clk 0:00:06]}  Kf7 {[%clk 0:00:08]} 72. Kg5 {[%clk 0:00:05]}  Rg1 {[%clk 0:00:08]} 73. g4 {[%clk 0:00:05]}  Rc1 {[%clk 0:00:09]} 74. f5 {[%clk 0:00:06]}  Rc7 {[%clk 0:00:09]} 75. Rb6 {[%clk 0:00:06]}  Rd7 {[%clk 0:00:09]} 76. Rf6+ {[%clk 0:00:06]}  Kg7 {[%clk 0:00:09]} 77. Rg6+ {[%clk 0:00:07]}  Kh7 {[%clk 0:00:10]} 78. Rh6+ {[%clk 0:00:07]}  Kg7 {[%clk 0:00:10]} 79. f6+ {[%clk 0:00:08]}  Kg8 {[%clk 0:00:10]} 80. Kg6 {[%clk 0:00:08]}  Rd4 {[%clk 0:00:10]} 81. f7+ {[%clk 0:00:08]}  Kf8 {[%clk 0:00:08]} 82. Rh8+ {[%clk 0:00:08]}  Ke7 {[%clk 0:00:09]} 83. f8=Q+ {[%clk 0:00:08]}  Kd7 {[%clk 0:00:10]} 84. Qd8+ {[%clk 0:00:08]}  Kc6 {[%clk 0:00:11]} 85. Qxd4 {[%clk 0:00:08]} 1-0


[Site "https://www.chess.com"]

[Event "Early Titled Tuesday Blitz | February 8 2022"]
[White "Bodnaruk, Anastasia"]
[Black "Kalogridis, Antonios"]
[WhiteFideId "4181751"]
[BlackFideId "25833901"]
[WhiteElo "2393"]
[BlackElo "1495"]
[Result "1-0"]
[Round "03"]
[TimeControl "180+1"]
[Date "2022.02.08"]
[WhiteClock "0:00:08"]
[BlackClock "0:00:41"]

1. e4 {[%clk 0:03:00]}  c6 {[%clk 0:02:59]} 2. Nf3 {[%clk 0:02:59]}  d5 {[%clk 0:03:00]} 3. exd5 {[%clk 0:03:00]}  cxd5 {[%clk 0:02:59]} 4. Ne5 {[%clk 0:03:00]}  Bd7 {[%clk 0:02:51]} 5. d4 {[%clk 0:02:58]}  Nf6 {[%clk 0:02:50]} 6. Bd3 {[%clk 0:02:56]}  e6 {[%clk 0:02:50]} 7. O-O {[%clk 0:02:55]}  Nc6 {[%clk 0:02:50]} 8. c3 {[%clk 0:02:54]}  Bd6 {[%clk 0:02:43]} 9. Re1 {[%clk 0:02:53]}  Qc7 {[%clk 0:02:42]} 10. f4 {[%clk 0:02:52]}  O-O {[%clk 0:02:41]} 11. Nd2 {[%clk 0:02:51]}  Ne7 {[%clk 0:02:41]} 12. Ndf3 {[%clk 0:02:40]}  Be8 {[%clk 0:02:40]} 13. g4 {[%clk 0:02:38]}  g6 {[%clk 0:02:36]} 14. Qe2 {[%clk 0:02:29]}  Ne4 {[%clk 0:02:29]} 15. Bxe4 {[%clk 0:02:24]}  dxe4 {[%clk 0:02:28]} 16. Qxe4 {[%clk 0:02:24]}  f6 {[%clk 0:02:24]} 17. Nd3 {[%clk 0:02:20]}  Bc6 {[%clk 0:02:23]} 18. Qe2 {[%clk 0:02:08]}  Nd5 {[%clk 0:02:18]} 19. Rf1 {[%clk 0:01:30]}  Nxf4 {[%clk 0:01:58]} 20. Nxf4 {[%clk 0:01:30]}  Bxf4 {[%clk 0:01:59]} 21. Bxf4 {[%clk 0:01:28]}  Qxf4 {[%clk 0:02:00]} 22. Ne5 {[%clk 0:01:26]}  Qe4 {[%clk 0:01:57]} 23. Qxe4 {[%clk 0:01:26]}  Bxe4 {[%clk 0:01:58]} 24. Nd7 {[%clk 0:01:26]}  Kg7 {[%clk 0:01:51]} 25. Nxf8 {[%clk 0:01:24]}  Rxf8 {[%clk 0:01:52]} 26. Rae1 {[%clk 0:01:24]}  f5 {[%clk 0:01:52]} 27. gxf5 {[%clk 0:01:20]}  Bxf5 {[%clk 0:01:48]} 28. Re5 {[%clk 0:01:18]}  Rd8 {[%clk 0:01:46]} 29. Rfe1 {[%clk 0:01:13]}  Kf6 {[%clk 0:01:46]} 30. Rc5 {[%clk 0:01:10]}  Rd7 {[%clk 0:01:45]} 31. Rc8 {[%clk 0:01:09]}  h5 {[%clk 0:01:44]} 32. h4 {[%clk 0:01:06]}  Rd5 {[%clk 0:01:41]} 33. Rc7 {[%clk 0:01:04]}  Rb5 {[%clk 0:01:40]} 34. b3 {[%clk 0:01:01]}  Ra5 {[%clk 0:01:38]} 35. Re2 {[%clk 0:00:58]}  b6 {[%clk 0:01:34]} 36. c4 {[%clk 0:00:57]}  g5 {[%clk 0:01:26]} 37. hxg5+ {[%clk 0:00:55]}  Kxg5 {[%clk 0:01:27]} 38. b4 {[%clk 0:00:44]}  Ra3 {[%clk 0:01:26]} 39. Rd2 {[%clk 0:00:41]}  Kf4 {[%clk 0:01:25]} 40. d5 {[%clk 0:00:40]}  exd5 {[%clk 0:01:19]} 41. cxd5 {[%clk 0:00:40]}  Ke3 {[%clk 0:01:15]} 42. Rf2 {[%clk 0:00:32]}  Bg4 {[%clk 0:01:10]} 43. d6 {[%clk 0:00:31]}  Rd3 {[%clk 0:01:09]} 44. Re7+ {[%clk 0:00:30]}  Kd4 {[%clk 0:01:09]} 45. d7 {[%clk 0:00:27]}  Kc3 {[%clk 0:01:08]} 46. Rff7 {[%clk 0:00:20]}  Kxb4 {[%clk 0:01:02]} 47. Rg7 {[%clk 0:00:14]}  Kb5 {[%clk 0:01:01]} 48. Kf2 {[%clk 0:00:11]}  Kc6 {[%clk 0:01:01]} 49. Rg6+ {[%clk 0:00:10]}  Kc7 {[%clk 0:00:57]} 50. d8=Q+ {[%clk 0:00:10]}  Kxd8 {[%clk 0:00:56]} 51. Rxa7 {[%clk 0:00:10]}  Rd7 {[%clk 0:00:48]} 52. Rxd7+ {[%clk 0:00:09]}  Kxd7 {[%clk 0:00:47]} 53. Rxb6 {[%clk 0:00:10]}  Kc7 {[%clk 0:00:48]} 54. Rb4 {[%clk 0:00:09]}  Kc6 {[%clk 0:00:48]} 55. a4 {[%clk 0:00:09]}  Bc8 {[%clk 0:00:47]} 56. a5 {[%clk 0:00:09]}  h4 {[%clk 0:00:46]} 57. Kf3 {[%clk 0:00:09]}  h3 {[%clk 0:00:45]} 58. Kg3 {[%clk 0:00:09]}  Kc5 {[%clk 0:00:45]} 59. Rb8 {[%clk 0:00:08]}  Ba6 {[%clk 0:00:43]} 60. Kxh3 {[%clk 0:00:08]}  Bb5 {[%clk 0:00:43]} 61. Kg3 {[%clk 0:00:08]}  Bc4 {[%clk 0:00:43]} 62. Kf3 {[%clk 0:00:08]}  Bb5 {[%clk 0:00:44]} 63. Ke3 {[%clk 0:00:08]}  Kc6 {[%clk 0:00:43]} 64. Kd4 {[%clk 0:00:08]}  Bf1 {[%clk 0:00:42]} 65. Kc3 {[%clk 0:00:07]}  Kc7 {[%clk 0:00:42]} 66. Rb6 {[%clk 0:00:07]}  Be2 {[%clk 0:00:42]} 67. Kb4 {[%clk 0:00:07]}  Bf1 {[%clk 0:00:42]} 68. Kc5 {[%clk 0:00:07]}  Be2 {[%clk 0:00:42]} 69. a6 {[%clk 0:00:08]}  Bf1 {[%clk 0:00:41]} 70. a7 {[%clk 0:00:08]} 1-0


[Site "https://www.chess.com"]

[Event "Early Titled Tuesday Blitz | February 8 2022"]
[White "Carre, Sylvain"]
[Black "Sovetbekova, Nurai"]
[WhiteFideId "642118"]
[BlackFideId "13801910"]
[WhiteElo "2105"]
[BlackElo "1545"]
[Result "1-0"]
[Round "03"]
[TimeControl "180+1"]
[Date "2022.02.08"]
[WhiteClock "0:00:17"]
[BlackClock "0:00:10"]

1. d4 {[%clk 0:02:55]}  Nf6 {[%clk 0:02:58]} 2. Bf4 {[%clk 0:02:54]}  g6 {[%clk 0:02:58]} 3. e3 {[%clk 0:02:55]}  Bg7 {[%clk 0:02:59]} 4. Be2 {[%clk 0:02:56]}  O-O {[%clk 0:02:59]} 5. Nf3 {[%clk 0:02:56]}  d5 {[%clk 0:02:59]} 6. O-O {[%clk 0:02:57]}  c5 {[%clk 0:03:00]} 7. c3 {[%clk 0:02:57]}  b6 {[%clk 0:02:57]} 8. Nbd2 {[%clk 0:02:58]}  Nc6 {[%clk 0:02:56]} 9. Ne5 {[%clk 0:02:58]}  Bb7 {[%clk 0:02:54]} 10. h3 {[%clk 0:02:58]}  Nd7 {[%clk 0:02:25]} 11. Nxd7 {[%clk 0:02:56]}  Qxd7 {[%clk 0:02:26]} 12. Nf3 {[%clk 0:02:56]}  Rfd8 {[%clk 0:02:10]} 13. Re1 {[%clk 0:02:56]}  Rac8 {[%clk 0:02:08]} 14. Rc1 {[%clk 0:02:47]}  cxd4 {[%clk 0:01:53]} 15. exd4 {[%clk 0:02:46]}  Qf5 {[%clk 0:01:49]} 16. Bg3 {[%clk 0:02:43]}  Re8 {[%clk 0:01:35]} 17. Bd3 {[%clk 0:02:43]}  Qd7 {[%clk 0:01:35]} 18. Bc2 {[%clk 0:02:36]}  Na5 {[%clk 0:01:28]} 19. Ne5 {[%clk 0:02:24]}  Bxe5 {[%clk 0:01:26]} 20. Bxe5 {[%clk 0:02:22]}  Nc4 {[%clk 0:01:26]} 21. Rb1 {[%clk 0:02:17]}  Nxe5 {[%clk 0:01:19]} 22. Rxe5 {[%clk 0:02:17]}  f6 {[%clk 0:01:19]} 23. Re1 {[%clk 0:02:16]}  e5 {[%clk 0:01:19]} 24. dxe5 {[%clk 0:02:14]}  Rxe5 {[%clk 0:01:17]} 25. Rxe5 {[%clk 0:01:32]}  fxe5 {[%clk 0:01:18]} 26. Bb3 {[%clk 0:01:19]}  Kg7 {[%clk 0:01:07]} 27. Qe2 {[%clk 0:01:18]}  Qf5 {[%clk 0:00:47]} 28. Re1 {[%clk 0:01:16]}  Re8 {[%clk 0:00:33]} 29. Qg4 {[%clk 0:01:09]}  Qxg4 {[%clk 0:00:29]} 30. hxg4 {[%clk 0:01:10]}  Kf6 {[%clk 0:00:29]} 31. f3 {[%clk 0:01:10]}  Rd8 {[%clk 0:00:23]} 32. Kf2 {[%clk 0:01:07]}  d4 {[%clk 0:00:17]} 33. cxd4 {[%clk 0:01:08]}  Rxd4 {[%clk 0:00:15]} 34. Rd1 {[%clk 0:01:05]}  Rxd1 {[%clk 0:00:14]} 35. Bxd1 {[%clk 0:01:06]}  g5 {[%clk 0:00:13]} 36. Ke3 {[%clk 0:01:04]}  Bd5 {[%clk 0:00:12]} 37. a3 {[%clk 0:01:03]}  Ke6 {[%clk 0:00:13]} 38. Bc2 {[%clk 0:01:02]}  h6 {[%clk 0:00:12]} 39. g3 {[%clk 0:01:03]}  a5 {[%clk 0:00:10]} 40. b4 {[%clk 0:01:02]}  Bc4 {[%clk 0:00:09]} 41. f4 {[%clk 0:01:00]}  exf4+ {[%clk 0:00:09]} 42. gxf4 {[%clk 0:01:00]}  axb4 {[%clk 0:00:08]} 43. axb4 {[%clk 0:00:53]}  Bf1 {[%clk 0:00:07]} 44. Bd1 {[%clk 0:00:45]}  Bh3 {[%clk 0:00:05]} 45. fxg5 {[%clk 0:00:40]}  hxg5 {[%clk 0:00:05]} 46. Kd4 {[%clk 0:00:39]}  Bg2 {[%clk 0:00:03]} 47. Be2 {[%clk 0:00:35]}  Bc6 {[%clk 0:00:04]} 48. Ba6 {[%clk 0:00:30]}  Kd6 {[%clk 0:00:03]} 49. Bc8 {[%clk 0:00:29]}  Be8 {[%clk 0:00:03]} 50. Ke4 {[%clk 0:00:28]}  Bg6+ {[%clk 0:00:03]} 51. Bf5 {[%clk 0:00:28]}  Bf7 {[%clk 0:00:04]} 52. Bc8 {[%clk 0:00:28]}  Be6 {[%clk 0:00:05]} 53. Bxe6 {[%clk 0:00:26]}  Kxe6 {[%clk 0:00:06]} 54. Kd4 {[%clk 0:00:24]}  Kd6 {[%clk 0:00:06]} 55. Kc4 {[%clk 0:00:19]}  Kc6 {[%clk 0:00:06]} 56. b5+ {[%clk 0:00:17]}  Kd6 {[%clk 0:00:06]} 57. Kd4 {[%clk 0:00:17]}  Ke6 {[%clk 0:00:07]} 58. Ke4 {[%clk 0:00:18]}  Kd6 {[%clk 0:00:07]} 59. Kf5 {[%clk 0:00:18]}  Kc5 {[%clk 0:00:08]} 60. Kxg5 {[%clk 0:00:18]}  Kxb5 {[%clk 0:00:09]} 61. Kf6 {[%clk 0:00:14]}  Kc5 {[%clk 0:00:08]} 62. g5 {[%clk 0:00:15]}  b5 {[%clk 0:00:08]} 63. g6 {[%clk 0:00:16]}  b4 {[%clk 0:00:09]} 64. g7 {[%clk 0:00:16]}  b3 {[%clk 0:00:10]} 65. g8=Q {[%clk 0:00:17]}  b2 {[%clk 0:00:10]} 66. Qb8 {[%clk 0:00:17]}  Kc4 {[%clk 0:00:10]} 67. Qxb2 {[%clk 0:00:17]} 1-0


[Site "https://www.chess.com"]

[Event "Early Titled Tuesday Blitz | February 8 2022"]
[White "Chen, Justin"]
[Black "Lorparizangeneh, Shahin"]
[WhiteFideId "2098199"]
[BlackFideId "12521604"]
[WhiteElo "2468"]
[BlackElo "2525"]
[Result "1-0"]
[Round "03"]
[TimeControl "180+1"]
[Date "2022.02.08"]
[WhiteClock "0:00:06"]
[BlackClock "0:00:11"]

1. e4 {[%clk 0:03:00]}  c5 {[%clk 0:02:59]} 2. Nf3 {[%clk 0:03:01]}  d6 {[%clk 0:02:59]} 3. Bb5+ {[%clk 0:02:59]}  Bd7 {[%clk 0:02:58]} 4. Bxd7+ {[%clk 0:03:00]}  Nxd7 {[%clk 0:02:59]} 5. O-O {[%clk 0:02:58]}  Ngf6 {[%clk 0:03:00]} 6. Qe2 {[%clk 0:02:56]}  e6 {[%clk 0:02:59]} 7. b3 {[%clk 0:02:56]}  Be7 {[%clk 0:02:57]} 8. Bb2 {[%clk 0:02:56]}  O-O {[%clk 0:02:57]} 9. c4 {[%clk 0:02:55]}  Re8 {[%clk 0:02:52]} 10. Nc3 {[%clk 0:02:54]}  e5 {[%clk 0:02:50]} 11. d3 {[%clk 0:02:43]}  Nf8 {[%clk 0:02:49]} 12. Bc1 {[%clk 0:02:33]}  Ne6 {[%clk 0:02:45]} 13. Be3 {[%clk 0:02:30]}  g6 {[%clk 0:02:40]} 14. a3 {[%clk 0:02:07]}  Ng4 {[%clk 0:02:36]} 15. b4 {[%clk 0:02:06]}  Nxe3 {[%clk 0:02:34]} 16. fxe3 {[%clk 0:02:07]}  Bf8 {[%clk 0:02:28]} 17. Nd5 {[%clk 0:02:04]}  Bg7 {[%clk 0:02:28]} 18. Nd2 {[%clk 0:01:55]}  Rf8 {[%clk 0:02:26]} 19. Qg4 {[%clk 0:01:45]}  a6 {[%clk 0:02:16]} 20. Nb3 {[%clk 0:01:39]}  b5 {[%clk 0:02:15]} 21. bxc5 {[%clk 0:01:25]}  dxc5 {[%clk 0:02:16]} 22. Rfc1 {[%clk 0:01:15]}  Qd6 {[%clk 0:02:12]} 23. a4 {[%clk 0:00:59]}  f5 {[%clk 0:02:08]} 24. Qe2 {[%clk 0:00:57]}  fxe4 {[%clk 0:01:48]} 25. dxe4 {[%clk 0:00:58]}  b4 {[%clk 0:01:49]} 26. Rf1 {[%clk 0:00:52]}  Rxf1+ {[%clk 0:01:38]} 27. Rxf1 {[%clk 0:00:53]}  Rf8 {[%clk 0:01:38]} 28. Rxf8+ {[%clk 0:00:53]}  Qxf8 {[%clk 0:01:38]} 29. Qg4 {[%clk 0:00:47]}  Qe8 {[%clk 0:01:38]} 30. h4 {[%clk 0:00:33]}  h5 {[%clk 0:01:38]} 31. Qh3 {[%clk 0:00:25]}  Kh7 {[%clk 0:01:36]} 32. Kh2 {[%clk 0:00:23]}  Qf7 {[%clk 0:01:08]} 33. Qf3 {[%clk 0:00:22]}  Qd7 {[%clk 0:00:40]} 34. Qf6 {[%clk 0:00:10]}  Qxd5 {[%clk 0:00:23]} 35. Qxg7+ {[%clk 0:00:09]}  Kxg7 {[%clk 0:00:21]} 36. exd5 {[%clk 0:00:10]}  Nd8 {[%clk 0:00:15]} 37. Nxc5 {[%clk 0:00:10]}  Nb7 {[%clk 0:00:16]} 38. Nb3 {[%clk 0:00:06]}  Kf6 {[%clk 0:00:12]} 39. e4 {[%clk 0:00:04]}  Nd6 {[%clk 0:00:13]} 40. Nd2 {[%clk 0:00:03]}  b3 {[%clk 0:00:12]} 41. c5 {[%clk 0:00:01]}  Nb7 {[%clk 0:00:08]} 42. Nxb3 {[%clk 0:00:02]}  Ke7 {[%clk 0:00:07]} 43. Kg3 {[%clk 0:00:02]}  Nd8 {[%clk 0:00:07]} 44. Kf3 {[%clk 0:00:03]}  Kd7 {[%clk 0:00:07]} 45. Ke3 {[%clk 0:00:04]}  Kc7 {[%clk 0:00:08]} 46. Kd3 {[%clk 0:00:04]}  Nf7 {[%clk 0:00:09]} 47. Kc4 {[%clk 0:00:05]}  Nh6 {[%clk 0:00:09]} 48. d6+ {[%clk 0:00:05]}  Kd7 {[%clk 0:00:10]} 49. Kd5 {[%clk 0:00:05]}  Ng4 {[%clk 0:00:11]} 50. c6+ {[%clk 0:00:06]}  Kd8 {[%clk 0:00:11]} 51. Nc5 {[%clk 0:00:06]} 1-0


[Site "https://www.chess.com"]

[Event "Early Titled Tuesday Blitz | February 8 2022"]
[White "Cramling Bellon, Anna"]
[Black "Mirzoev, Azer"]
[WhiteFideId "32009232"]
[BlackFideId "13400304"]
[WhiteElo "1905"]
[BlackElo "2525"]
[Result "0-1"]
[Round "03"]
[TimeControl "180+1"]
[Date "2022.02.08"]
[WhiteClock "0:00:22"]
[BlackClock "0:01:46"]

1. d4 {[%clk 0:03:00]}  Nf6 {[%clk 0:02:59]} 2. c4 {[%clk 0:02:59]}  e6 {[%clk 0:02:59]} 3. Nf3 {[%clk 0:02:57]}  c5 {[%clk 0:03:00]} 4. d5 {[%clk 0:02:57]}  exd5 {[%clk 0:03:00]} 5. cxd5 {[%clk 0:02:58]}  d6 {[%clk 0:03:00]} 6. Nc3 {[%clk 0:02:56]}  a6 {[%clk 0:03:00]} 7. a4 {[%clk 0:02:56]}  g6 {[%clk 0:02:59]} 8. e4 {[%clk 0:02:56]}  Bg7 {[%clk 0:02:57]} 9. Bd3 {[%clk 0:02:56]}  Bg4 {[%clk 0:02:56]} 10. h3 {[%clk 0:02:54]}  Bxf3 {[%clk 0:02:55]} 11. Qxf3 {[%clk 0:02:55]}  O-O {[%clk 0:02:56]} 12. O-O {[%clk 0:02:55]}  Nbd7 {[%clk 0:02:56]} 13. Qe2 {[%clk 0:02:52]}  Re8 {[%clk 0:02:56]} 14. f4 {[%clk 0:02:48]}  Rc8 {[%clk 0:02:55]} 15. Qf2 {[%clk 0:02:45]}  c4 {[%clk 0:02:55]} 16. Bc2 {[%clk 0:02:40]}  Nc5 {[%clk 0:02:55]} 17. Re1 {[%clk 0:02:04]}  b5 {[%clk 0:02:45]} 18. axb5 {[%clk 0:02:02]}  axb5 {[%clk 0:02:45]} 19. e5 {[%clk 0:01:56]}  dxe5 {[%clk 0:02:43]} 20. fxe5 {[%clk 0:01:56]}  Nfd7 {[%clk 0:02:13]} 21. Nxb5 {[%clk 0:01:38]}  Nxe5 {[%clk 0:02:13]} 22. Rf1 {[%clk 0:01:01]}  Qxd5 {[%clk 0:02:05]} 23. Nc3 {[%clk 0:00:59]}  Qe6 {[%clk 0:01:58]} 24. Be3 {[%clk 0:00:54]}  Ncd3 {[%clk 0:01:57]} 25. Bxd3 {[%clk 0:00:48]}  Nxd3 {[%clk 0:01:58]} 26. Ra6 {[%clk 0:00:29]}  Qxe3 {[%clk 0:01:50]} 27. Qxe3 {[%clk 0:00:24]}  Rxe3 {[%clk 0:01:50]} 28. Nd5 {[%clk 0:00:25]}  Re6 {[%clk 0:01:47]} 29. Ra7 {[%clk 0:00:22]}  Bd4+ {[%clk 0:01:46]} 0-1


[Site "https://www.chess.com"]

[Event "Early Titled Tuesday Blitz | February 8 2022"]
[White "Cunjalo, Faris"]
[Black "Orozbaev, Eldiar"]
[WhiteFideId "14410710"]
[BlackFideId "13802240"]
[WhiteElo "2263"]
[BlackElo "2050"]
[Result "0-1"]
[Round "03"]
[TimeControl "180+1"]
[Date "2022.02.08"]
[WhiteClock "0:01:39"]
[BlackClock "0:02:03"]

1. c4 {[%clk 0:03:00]}  b6 {[%clk 0:02:58]} 2. Nc3 {[%clk 0:02:56]}  Bb7 {[%clk 0:02:58]} 3. e4 {[%clk 0:02:56]}  e5 {[%clk 0:02:58]} 4. Nf3 {[%clk 0:02:55]}  Nc6 {[%clk 0:02:57]} 5. d4 {[%clk 0:02:52]}  exd4 {[%clk 0:02:57]} 6. Nxd4 {[%clk 0:02:53]}  Bc5 {[%clk 0:02:54]} 7. Be3 {[%clk 0:02:53]}  Nf6 {[%clk 0:02:51]} 8. Nxc6 {[%clk 0:02:47]}  Bxc6 {[%clk 0:02:51]} 9. Bxc5 {[%clk 0:02:46]}  bxc5 {[%clk 0:02:51]} 10. e5 {[%clk 0:02:46]}  Qe7 {[%clk 0:02:48]} 11. Qe2 {[%clk 0:02:44]}  Ng8 {[%clk 0:02:46]} 12. O-O-O {[%clk 0:02:34]}  Nh6 {[%clk 0:02:46]} 13. f4 {[%clk 0:02:27]}  O-O {[%clk 0:02:40]} 14. Qc2 {[%clk 0:02:19]}  d6 {[%clk 0:02:35]} 15. exd6 {[%clk 0:02:05]}  cxd6 {[%clk 0:02:36]} 16. Bd3 {[%clk 0:02:06]}  f5 {[%clk 0:02:30]} 17. Rhe1 {[%clk 0:02:00]}  Qf7 {[%clk 0:02:26]} 18. Be2 {[%clk 0:01:53]}  Qf6 {[%clk 0:02:21]} 19. Bf3 {[%clk 0:01:46]}  Bxf3 {[%clk 0:02:16]} 20. gxf3 {[%clk 0:01:47]}  Rae8 {[%clk 0:02:12]} 21. Nd5 {[%clk 0:01:46]}  Qh4 {[%clk 0:02:06]} 22. Qg2 {[%clk 0:01:39]}  Rxe1 {[%clk 0:02:03]} 0-1


[Site "https://www.chess.com"]

[Event "Early Titled Tuesday Blitz | February 8 2022"]
[White "Dahanayake, Isara Banidu"]
[Black "Jaskolka, Tomasz"]
[WhiteFideId "9932631"]
[BlackFideId "1170791"]
[WhiteElo "1394"]
[BlackElo "2054"]
[Result "0-1"]
[Round "03"]
[TimeControl "180+1"]
[Date "2022.02.08"]
[WhiteClock "0:00:27"]
[BlackClock "0:00:47"]

1. e4 {[%clk 0:03:00]}  c5 {[%clk 0:02:59]} 2. Nf3 {[%clk 0:02:56]}  e6 {[%clk 0:02:59]} 3. d4 {[%clk 0:02:53]}  cxd4 {[%clk 0:02:58]} 4. Nxd4 {[%clk 0:02:54]}  Nc6 {[%clk 0:02:59]} 5. Nxc6 {[%clk 0:02:52]}  bxc6 {[%clk 0:02:58]} 6. Bd3 {[%clk 0:02:52]}  d5 {[%clk 0:02:58]} 7. O-O {[%clk 0:02:51]}  Nf6 {[%clk 0:02:57]} 8. Qe2 {[%clk 0:02:48]}  Be7 {[%clk 0:02:53]} 9. e5 {[%clk 0:02:42]}  Nd7 {[%clk 0:02:53]} 10. c4 {[%clk 0:02:38]}  O-O {[%clk 0:02:44]} 11. b3 {[%clk 0:02:37]}  f6 {[%clk 0:02:38]} 12. exf6 {[%clk 0:01:29]}  Bxf6 {[%clk 0:02:38]} 13. Bb2 {[%clk 0:01:28]}  Nc5 {[%clk 0:02:01]} 14. Bxf6 {[%clk 0:01:16]}  Qxf6 {[%clk 0:01:58]} 15. Nd2 {[%clk 0:01:16]}  Nxd3 {[%clk 0:01:58]} 16. Qxd3 {[%clk 0:01:16]}  Bb7 {[%clk 0:01:47]} 17. Rae1 {[%clk 0:01:10]}  e5 {[%clk 0:01:44]} 18. Qg3 {[%clk 0:00:48]}  Rae8 {[%clk 0:01:37]} 19. cxd5 {[%clk 0:00:40]}  cxd5 {[%clk 0:01:37]} 20. Rc1 {[%clk 0:00:39]}  Re7 {[%clk 0:01:28]} 21. Rfe1 {[%clk 0:00:36]}  e4 {[%clk 0:01:22]} 22. Nf1 {[%clk 0:00:35]}  d4 {[%clk 0:01:19]} 23. f4 {[%clk 0:00:30]}  Qxf4 {[%clk 0:00:57]} 24. Qxf4 {[%clk 0:00:27]}  Rxf4 {[%clk 0:00:58]} 25. Ng3 {[%clk 0:00:27]}  d3 {[%clk 0:00:47]} 0-1


[Site "https://www.chess.com"]